bitfinex/quotes_ETHUSD_20240718
["timestamp","ask_amount","ask_price","bid_price","bid_amount"]
[1721268900206,1.1153717,3419.7,3419.0,2.92481]
[1721268900441,1.1153717,3419.7,3418.8,5.43994]
[1721268900703,2.92438,3419.6,3418.5,2.92525]
[1721268900999,2.92438,3419.6,3418.6,2.92516]
[1721268901000,5.2513,3419.5,3418.6,2.92516]
[1721268901228,5.85845513,3419.5,3418.6,2.92516]
[1721268901893,2.3674,3419.9,3418.8,2.515]
[1721268902062,5.3674,3419.9,3419.2,5.43964]
[1721268902264,5.3674,3419.9,3419.2,2.515]
[1721268902497,5.3674,3419.9,3419.2,5.43965]
[1721268902498,3.58336983,3419.9,3419.2,5.43965]
[1721268902694,1.21596983,3420.0,3419.3,2.92457]
[1721268902900,8.52596983,3420.1,3419.3,2.92457]
[1721268903198,10.35064206,3420.1,3419.2,2.515]
[1721268903400,1.21596983,3420.0,3419.2,2.515]
[1721268903710,8.52596983,3420.1,3419.3,2.92451]
[1721268904026,8.52596983,3420.1,3419.3,2.92456]
[1721268904505,1.21596983,3419.9,3419.2,5.4396]
[1721268904659,1.21596983,3419.9,3419.2,2.515]
[1721268904868,3.55536983,3419.7,3418.8,2.515]
[1721268905179,3.55536983,3419.7,3418.8,5.43992]
[1721268905180,1.21596983,3419.5,3418.8,5.43992]
[1721268905504,1.21596983,3419.5,3418.9,2.92488]
[1721268905720,1.21596983,3419.6,3418.9,2.92488]
[1721268906269,1.21596983,3419.5,3418.9,2.92488]
[1721268907693,1.21596983,3419.5,3418.8,5.43999]
[1721268907866,1.21596983,3419.4,3418.8,5.43999]
[1721268908219,1.21596983,3419.8,3419.4,2.92447]
[1721268908528,1.21596983,3419.9,3419.7,2.515]
[1721268908806,1.21596983,3420.2,3419.7,2.515]
[1721268909187,1.21596983,3420.2,3419.7,5.43922]
[1721268909607,1.21596983,3420.3,3419.8,2.92414]
[1721268909766,1.21596983,3420.4,3419.9,2.92405]
[1721268909972,1.21596983,3420.4,3420.1,2.515]
[1721268910173,7.31,3420.6,3420.2,2.9238]
[1721268910367,7.31,3420.6,3419.8,3.117953]
[1721268910368,1.21596983,3421.0,3420.5,2.515]
[1721268910618,7.31,3421.2,3420.5,2.515]
[1721268910923,1.21596983,3421.1,3420.5,2.515]
[1721268911126,3.62596983,3420.9,3420.2,2.9238]
[1721268911328,1.21596983,3420.9,3420.3,2.92371]
[1721268911615,1.83028614,3421.4,3420.4,2.92361]
[1721268911616,1.21596983,3421.0,3420.4,2.92361]
[1721268911805,1.21596983,3421.1,3420.1,5.43887]
[1721268912003,2.02337966,3421.0,3420.1,2.515]
[1721268912183,1.21596983,3420.9,3420.1,2.515]
[1721268912700,2.02337966,3421.0,3420.1,5.43886]
[1721268912901,1.21596983,3421.0,3420.3,2.92371]
[1721268913108,4.21596983,3421.1,3420.5,2.92353]
[1721268913280,3.62596983,3421.2,3420.6,2.92345]
[1721268913480,1.21596983,3421.4,3420.5,2.515]
[1721268913679,4.21596983,3421.4,3420.7,2.92337]
[1721268913882,3.0,3421.4,3420.7,2.92337]
[1721268914175,8.52596983,3421.5,3420.8,2.92325]
[1721268914384,8.52596983,3421.5,3420.9,2.9232]
[1721268914385,7.31,3421.5,3420.9,2.9232]
[1721268914612,7.31,3421.5,3420.7,3.75956]
[1721268915111,7.31,3421.5,3420.8,2.92325]
[1721268915413,1.21596983,3421.7,3420.7,3.75956]
[1721268915610,5.41654,3421.8,3420.7,2.92337]
[1721268915611,2.78671147,3421.6,3420.7,2.92337]
[1721268915993,2.78671147,3421.6,3420.8,2.92327]
[1721268917288,6.63250983,3421.8,3420.8,2.92327]
[1721268917289,2.4941,3421.8,3420.8,2.92327]
[1721268917488,3.0,3421.8,3420.9,5.43815]
[1721268917711,3.0,3421.8,3421.3,2.92286]
[1721268918381,3.0,3421.8,3421.0,2.92309]
[1721268918695,3.0,3421.8,3420.9,5.43814]
[1721268918892,1.031,3421.7,3420.9,5.43814]
[1721268919116,1.031,3421.7,3420.3,5.31661]
[1721268919117,1.031,3421.7,3420.7,2.92337]
[1721268919318,1.031,3421.7,3420.5,5.43853]
[1721268919319,2.2588,3421.6,3420.8,2.92328]
[1721268919679,2.2588,3421.6,3420.6,2.9234]
[1721268920384,2.2588,3421.6,3420.7,2.92337]
[1721268920586,0.92123,3421.5,3420.7,2.92337]
[1721268921616,0.92123,3421.5,3420.5,5.43854]
[1721268921617,0.92123,3421.5,3420.6,2.92346]
[1721268921848,0.92123,3421.5,3420.7,2.92337]
[1721268922005,2.2588,3421.6,3420.8,2.92327]
[1721268922911,2.2588,3421.6,3421.0,2.92311]
[1721268923466,7.31,3421.9,3421.0,2.9231]
[1721268923602,7.31,3421.9,3421.1,2.92302]
[1721268925248,10.23241,3421.9,3420.5,2.92348]
[1721268925542,5.22893,3421.7,3420.6,2.92339]
[1721268925909,5.22893,3421.7,3420.7,2.92332]
[1721268926107,2.92285,3421.4,3420.1,5.43881]
[1721268926347,2.92285,3421.4,3420.1,2.92381]
[1721268926348,2.92295,3421.2,3420.1,2.92381]
[1721268926550,2.92312,3421.0,3420.0,2.92397]
[1721268927250,0.82149,3421.1,3419.9,2.515]
[1721268927251,2.9232,3420.9,3419.9,2.515]
[1721268927929,2.3278,3420.8,3419.4,2.92447]
[1721268928139,2.3278,3420.8,3418.8,3.133306]
[1721268928140,2.3278,3420.1,3419.1,2.515]
[1721268928453,0.817536,3420.0,3419.1,2.515]
[1721268928964,7.31,3420.4,3419.2,2.92462]
[1721268929120,7.31,3420.4,3418.8,0.836506]
[1721268929121,7.31,3420.4,3419.5,2.515]
[1721268931126,10.23369,3420.4,3419.5,2.515]
[1721268931960,7.31,3420.4,3419.5,2.515]
[1721268932126,10.2337,3420.4,3419.5,2.515]
[1721268932465,1.27105,3420.3,3419.5,2.515]
[1721268932769,2.3832,3420.0,3418.9,2.92484]
[1721268933127,5.3072,3420.0,3418.9,2.92484]
[1721268933445,5.3072,3420.0,3418.8,2.515]
[1721268933446,8.3072,3420.0,3418.8,2.515]
[1721268933631,2.92424,3419.7,3418.8,2.515]
[1721268935053,3.75479,3419.9,3418.8,5.44]
[1721268935266,3.0,3420.0,3419.2,2.515]
[1721268935453,9.6182,3420.4,3419.6,2.515]
[1721268935659,12.54184,3420.4,3419.6,2.515]
[1721268935955,9.6182,3420.4,3419.6,2.515]
[1721268936371,10.31,3420.7,3419.7,2.92417]
[1721268936667,3.0,3420.6,3419.7,2.92417]
[1721268936889,10.165639,3420.7,3419.7,2.92417]
[1721268937076,13.089029,3420.7,3419.7,2.92417]
[1721268937373,13.089029,3420.7,3419.6,2.515]
[1721268937374,2.92346,3420.6,3419.6,2.515]
[1721268937677,2.92346,3420.6,3419.3,2.92455]
[1721268937678,2.92382,3420.2,3419.2,2.515]
[1721268937965,2.4478,3420.1,3419.2,2.515]
[1721268938658,5.37169,3420.1,3419.2,2.515]
[1721268939170,5.37169,3420.1,3418.9,2.92489]
[1721268939880,2.92431,3419.7,3418.8,2.515]
[1721268940055,0.584844,3419.6,3418.8,2.515]
[1721268940249,2.92413,3419.9,3418.8,2.515]
[1721268940250,2.92412,3419.9,3418.8,2.515]
[1721268941352,2.92424,3419.7,3418.8,2.515]
[1721268941768,2.92438,3419.6,3418.8,2.515]
[1721268944156,2.92438,3419.6,3418.6,2.92516]
[1721268944860,2.4948,3419.5,3418.6,2.92516]
[1721268945157,0.541918,3419.4,3418.4,2.515]
[1721268945468,2.92476,3419.1,3418.1,2.92559]
[1721268946415,2.92476,3419.1,3418.0,5.44066]
[1721268946911,2.92476,3419.1,3418.1,2.92559]
[1721268947083,0.584934,3419.0,3418.1,2.92559]
[1721268950728,3.509814,3419.0,3418.0,2.515]
[1721268950890,3.509814,3419.0,3418.0,5.44068]
[1721268951823,0.584934,3419.0,3418.1,2.92558]
[1721268952690,0.584934,3419.0,3418.2,2.98400511]
[1721268952887,3.0,3419.1,3418.2,2.9255]
[1721268953127,2.4948,3419.5,3418.8,2.515]
[1721268953337,7.31,3419.8,3419.1,2.92473]
[1721268953638,5.29187,3420.0,3419.1,2.92473]
[1721268953988,5.29187,3420.0,3418.9,5.84976]
[1721268954221,1.5818062,3419.9,3419.0,2.9248]
[1721268954407,1.5818062,3419.9,3418.8,2.515]
[1721268954609,2.92421,3419.8,3418.7,2.92508]
[1721268954835,2.92421,3419.8,3418.8,2.92499]
[1721268955206,2.3409,3419.4,3418.4,2.515]
[1721268955530,2.3409,3419.4,3418.4,3.05904]
[1721268955741,2.3409,3419.4,3418.5,2.92525]
[1721268955945,2.92464,3419.3,3418.0,8.44061]
[1721268956159,2.92467,3419.2,3418.2,2.92544]
[1721268956308,0.343425,3419.2,3418.3,2.92541]
[1721268956501,3.268085,3419.2,3418.3,2.92541]
[1721268956705,3.268085,3419.2,3418.0,2.515]
[1721268958344,3.268085,3419.2,3418.1,2.92559]
[1721268958345,2.92484,3419.0,3418.1,2.92559]
[1721268958548,0.6192925,3419.0,3418.1,2.92559]
[1721268958769,3.268085,3419.2,3418.2,2.9255]
[1721268958914,2.92474,3419.1,3418.2,2.9255]
[1721268959632,0.343425,3419.2,3418.2,2.9255]
[1721268959810,6.268085,3419.2,3418.2,2.9255]
[1721268960236,6.268085,3419.2,3418.0,2.515]
[1721268960237,2.2653,3419.1,3418.0,2.515]
[1721268960560,2.2653,3419.1,3417.8,2.92578]
[1721268960561,5.19028,3418.9,3417.8,2.92578]
[1721268960932,5.92502,3418.8,3417.8,2.92578]
[1721268961137,5.92502,3418.8,3417.6,2.92601]
[1721268961448,5.92502,3418.8,3417.7,2.92592]
[1721268961942,2.9251,3418.7,3417.7,2.92592]
[1721268962146,4.111542,3418.6,3417.7,2.92592]
[1721268962348,4.111542,3418.6,3417.4,3.0244088]
[1721268962349,7.036732,3418.6,3417.5,2.92603]
[1721268963136,7.036732,3418.6,3417.6,2.92602]
[1721268963660,4.111542,3418.6,3417.6,2.92602]
[1721268963869,5.92508,3418.7,3417.6,2.92602]
[1721268964166,5.19022,3418.9,3417.7,2.515]
[1721268964327,5.92501,3418.8,3417.8,2.92585]
[1721268964660,3.0,3418.8,3417.8,2.92585]
[1721268964866,8.19022,3418.9,3417.8,2.92585]
[1721268965162,2.925,3418.8,3417.9,0.836687]
[1721268965324,2.92528,3418.5,3417.7,2.515]
[1721268966869,5.2653,3418.9,3417.7,2.515]
[1721268967229,2.925,3418.8,3417.8,2.9258]
[1721268968255,5.2653,3418.9,3417.7,2.515]
[1721268968256,2.92524,3418.6,3417.7,2.515]
[1721268968481,2.92524,3418.6,3417.4,3.0244088]
[1721268968625,2.92535,3418.4,3417.4,3.0244088]
[1721268969246,0.292524,3418.5,3417.5,2.9261]
[1721268969426,3.217784,3418.5,3417.5,2.9261]
[1721268969630,3.217784,3418.5,3417.6,2.92601]
[1721268969631,0.292524,3418.5,3417.6,2.92601]
[1721268970021,0.292524,3418.5,3417.4,3.0244088]
[1721268970262,0.292524,3418.5,3417.4,3.87098268]
[1721268970263,3.217854,3418.5,3417.4,3.87098268]
[1721268970627,2.92535,3418.4,3417.5,2.9261]
[1721268971099,0.292524,3418.5,3417.5,2.9261]
[1721268971480,5.2653,3418.9,3417.4,0.94482268]
[1721268971481,8.19027,3418.9,3417.4,0.94482268]
[1721268971685,8.19027,3418.9,3417.8,2.92585]
[1721268972309,2.92501,3418.8,3417.8,2.92585]
[1721268972609,2.92501,3418.8,3417.9,2.92576]
[1721268972899,2.92501,3418.8,3417.7,2.92588]
[1721268973101,1.16760425,3418.7,3417.7,2.92588]
[1721268973408,2.92519,3418.6,3417.6,2.92601]
[1721268973895,2.92519,3418.6,3417.4,3.0243788]
[1721268973896,2.92531,3418.5,3417.4,3.0243788]
[1721268974114,2.92536,3418.4,3417.4,3.0243788]
[1721268974399,5.800155,3418.3,3417.4,0.0982488]
[1721268974623,2.92552,3418.2,3417.4,0.0982488]
[1721268975190,5.21509,3418.3,3417.4,0.0982488]
[1721268976115,2.2896,3418.3,3417.6,2.92602]
[1721268976314,3.0,3418.6,3417.6,2.92602]
[1721268976520,0.94984143,3418.5,3417.6,2.92602]
[1721268976812,3.87510143,3418.5,3417.6,2.92602]
[1721268977013,2.4057,3418.3,3417.4,0.0982488]
[1721268977515,2.4057,3418.3,3417.5,2.92611]
[1721268977735,2.92574,3418.0,3417.4,0.0982488]
[1721268978033,2.92585,3417.9,3417.4,0.0982488]
[1721268978321,2.92585,3417.8,3417.4,0.0982488]
[1721268978494,2.4367,3417.7,3417.4,0.0982488]
[1721268978821,2.92611,3417.5,3417.4,0.0982488]
[1721268980200,5.85222,3417.5,3417.4,0.0982488]
[1721268980931,8.85222,3417.5,3417.4,0.0982488]
[1721268981298,11.18632,3417.5,3417.4,0.0982488]
[1721268983432,12.40228983,3417.5,3417.4,0.0982488]
[1721268983589,17.37588498,3417.5,3417.4,0.0982488]
[1721268983922,17.37588498,3417.5,3415.5,4.8565]
[1721268983923,2.92694,3416.6,3415.5,4.8565]
[1721268984132,5.4165,3417.4,3415.0,5.26967]
[1721268984133,2.92729,3416.2,3415.0,5.26967]
[1721268984442,2.3355,3416.5,3415.3,2.92793]
[1721268984443,2.92706,3416.4,3415.3,2.92793]
[1721268984622,2.92714,3416.3,3415.4,0.837101]
[1721268984788,2.92734,3416.1,3415.1,5.44309]
[1721268984996,2.92742,3416.0,3415.1,5.44309]
[1721268985319,2.92714,3416.3,3415.1,2.515]
[1721268985486,2.92714,3416.3,3414.8,2.92841]
[1721268985691,2.92738,3416.1,3415.0,2.92818]
[1721268985889,2.92738,3416.1,3415.1,3.513819]
[1721268986651,2.92766,3415.7,3414.7,2.515]
[1721268986842,2.92766,3415.7,3414.7,2.92849]
[1721268987144,2.92749,3415.9,3414.9,2.92834]
[1721268987890,5.23054,3416.2,3415.0,2.92825]
[1721268987891,2.3033,3416.2,3415.0,2.92825]
[1721268988129,2.92737,3416.1,3415.0,2.92825]
[1721268988346,2.9274,3416.0,3415.0,2.92825]
[1721268988490,2.92748,3415.9,3414.9,2.92832]
[1721268988694,2.4435,3415.7,3414.5,2.515]
[1721268988896,2.92783,3415.5,3414.3,2.92881]
[1721268989126,2.92783,3415.5,3414.1,3.465]
[1721268989127,2.92809,3415.2,3414.1,3.87896]
[1721268989337,2.92809,3415.2,3414.1,0.95]
[1721268989338,2.92823,3415.1,3414.1,0.95]
[1721268990021,2.92823,3415.1,3414.1,3.87901]
[1721268990218,2.92828,3415.0,3414.1,0.95]
[1721268990415,2.4166,3414.9,3414.1,0.9]
[1721268990717,2.92861,3414.6,3414.1,0.9]
[1721268990967,6.172331,3414.9,3414.1,0.9]
[1721268991237,2.92852,3414.7,3414.1,0.9]
[1721268991441,2.9286,3414.6,3414.1,0.9]
[1721268992225,3.8386941,3414.6,3414.1,0.9]
[1721268992734,2.92868,3414.5,3414.1,0.9]
[1721268993867,2.3936,3414.4,3414.1,0.9]
[1721268994370,2.92861,3414.6,3414.1,0.9]
[1721268994857,6.322319,3415.4,3414.1,0.9]
[1721268995022,3.394399,3415.4,3414.2,5.44394]
[1721268995224,5.19241,3415.4,3414.3,2.92879]
[1721268995548,2.928,3415.3,3414.3,2.92885]
[1721268995870,2.928,3415.3,3414.2,2.92893]
[1721268996075,2.92812,3415.2,3414.1,0.9]
[1721268996422,2.92828,3415.0,3414.1,0.9]
[1721268996622,0.885647,3414.9,3414.1,0.9]
[1721268996969,3.814027,3414.9,3414.1,0.9]
[1721268997171,2.92845,3414.8,3414.1,0.9]
[1721268997936,0.885647,3414.9,3414.1,0.9]
[1721268999078,2.92848,3414.8,3414.1,0.9]
[1721268999374,3.6028087,3414.7,3414.1,0.9]
[1721268999537,2.92857,3414.7,3414.1,0.9]
[1721269000368,2.9286,3414.6,3414.1,0.9]
[1721269000547,2.4951,3414.5,3414.1,0.9]
[1721269000743,2.92846,3414.8,3414.1,0.9]
[1721269000967,0.6309207,3414.7,3414.1,0.9]
[1721269001267,3.5594407,3414.7,3414.1,0.9]
[1721269002852,0.6309207,3414.7,3414.1,0.9]
[1721269003275,2.92835,3414.9,3414.1,0.9]
[1721269003783,5.9281,3415.2,3414.1,0.9]
[1721269004336,5.9281,3415.2,3414.1,3.82902]
[1721269004905,2.92818,3415.1,3414.1,3.82902]
[1721269005080,5.92826,3415.0,3414.1,0.9]
[1721269005286,2.92851,3414.7,3414.1,0.9]
[1721269005462,0.892826,3414.9,3414.1,0.9]
[1721269005659,2.92844,3414.8,3414.1,0.9]
[1721269005972,0.892826,3414.9,3414.1,0.9]
[1721269006187,6.821166,3414.9,3414.1,0.9]
[1721269006355,0.9749426,3414.8,3414.1,0.9]
[1721269007302,0.9749426,3414.8,3414.1,3.82902]
[1721269007453,5.4056,3415.3,3414.1,3.82902]
[1721269007454,5.92808,3415.2,3414.1,3.82902]
[1721269007654,2.92836,3414.9,3414.1,0.9]
[1721269008193,2.9284,3414.9,3414.1,0.9]
[1721269008694,2.92845,3414.8,3414.1,0.9]
[1721269008999,2.92831,3415.0,3414.1,0.9]
[1721269009156,3.88565,3414.9,3414.1,0.9]
[1721269009356,6.81401,3414.9,3414.1,0.9]
[1721269010190,3.88565,3414.9,3414.1,0.9]
[1721269010494,2.9286,3414.6,3414.1,0.9]
[1721269011693,2.92876,3414.5,3414.1,0.9]
[1721269011862,2.3047,3414.8,3414.1,0.9]
[1721269011863,2.92894,3414.2,3414.1,0.9]
[1721269012073,5.85788,3414.2,3414.1,0.9]
[1721269012377,8.85788,3414.2,3414.1,0.9]
[1721269013055,12.08022,3414.2,3414.1,0.9]
[1721269014278,9.15128,3414.2,3414.1,0.9]
[1721269014483,10.911005,3414.2,3414.1,0.9]
[1721269015357,7.982065,3414.2,3414.1,0.9]
[1721269015585,4.759725,3414.2,3414.1,0.9]
[1721269015765,3.0,3414.2,3414.1,0.9]
[1721269016071,2.92894,3414.2,3414.1,0.9]
[1721269016253,5.92894,3414.2,3414.1,0.9]
[1721269016865,8.85788,3414.2,3414.1,0.9]
[1721269017603,15.16122,3414.2,3414.1,0.9]
[1721269017781,16.920962,3414.2,3414.1,0.9]
[1721269018300,22.167102,3414.2,3414.1,0.9]
[1721269018486,22.717102,3414.2,3414.1,0.9]
[1721269019160,19.788162,3414.2,3414.1,0.9]
[1721269019360,19.238162,3414.2,3414.1,0.9]
[1721269020632,4.982082,3414.2,3414.1,0.9]
[1721269020922,7.617622,3414.2,3414.1,0.9]
[1721269021293,10.698622,3414.2,3414.1,0.9]
[1721269021697,4.688682,3414.2,3414.1,0.9]
[1721269021901,5.92894,3414.2,3414.1,0.9]
[1721269022081,2.92894,3414.2,3414.1,0.9]
[1721269022284,5.92894,3414.2,3414.1,0.9]
[1721269022527,8.85788,3414.2,3414.1,0.9]
[1721269022894,11.93888,3414.2,3414.1,0.9]
[1721269023096,10.373997,3414.2,3414.1,0.9]
[1721269023712,13.454997,3414.2,3414.1,0.9]
[1721269024023,16.677337,3414.2,3414.1,0.9]
[1721269024187,16.141997,3414.2,3414.1,0.9]
[1721269025032,19.070937,3414.2,3414.1,0.9]
[1721269025519,19.620937,3414.2,3414.1,0.9]
[1721269025728,16.141997,3414.2,3414.1,0.9]
[1721269026490,19.070937,3414.2,3414.1,0.9]
[1721269026690,19.620937,3414.2,3414.1,0.9]
[1721269026999,19.070937,3414.2,3414.1,0.9]
[1721269028057,19.12193306,3414.2,3414.1,0.9]
[1721269029033,22.60087306,3414.2,3414.1,0.9]
[1721269029759,19.67193306,3414.2,3414.1,0.9]
[1721269029922,22.60087306,3414.2,3414.1,0.9]
[1721269031055,20.88870319,3414.2,3414.1,0.9]
[1721269031265,22.60087306,3414.2,3414.1,0.9]
[1721269031468,23.81764319,3414.2,3414.1,0.9]
[1721269031826,24.68365215,3414.2,3414.1,0.9]
[1721269032048,24.9870721,3414.2,3414.1,0.9]
[1721269032560,20.53794202,3414.2,3414.1,0.9]
[1721269032718,18.27560602,3414.2,3414.1,0.9]
[1721269032925,16.19299306,3414.2,3414.1,0.9]
[1721269033134,19.12193306,3414.2,3414.1,0.9]
[1721269033358,16.19299306,3414.2,3414.1,0.9]
[1721269033560,19.12193306,3414.2,3414.1,0.9]
[1721269034061,10.11199306,3414.2,3414.1,0.9]
[1721269034623,7.71839306,3414.2,3414.1,0.9]
[1721269035045,4.78945306,3414.2,3414.1,0.9]
[1721269035244,6.22234,3414.2,3414.1,0.9]
[1721269036462,10.367884,3414.2,3414.1,0.9]
[1721269036760,15.16122,3414.2,3414.1,0.9]
[1721269036982,16.027692,3414.2,3414.1,0.9]
[1721269037857,17.85543421,3414.2,3414.1,0.9]
[1721269038069,20.39859977,3414.2,3414.1,0.9]
[1721269038436,9.33857756,3414.2,3414.1,0.9]
[1721269038738,10.07676062,3414.2,3414.1,0.9]
[1721269039236,8.85788,3414.2,3414.1,0.9]
[1721269039429,7.14801462,3414.2,3414.1,0.9]
[1721269039648,5.92894,3414.2,3414.1,0.9]
[1721269039830,7.14816085,3414.2,3414.1,0.9]
[1721269040256,5.92894,3414.2,3414.1,0.9]
[1721269040468,1.21922085,3414.4,3414.1,0.9]
[1721269040629,4.14773085,3414.7,3414.1,0.9]
[1721269040830,2.92851,3414.7,3414.1,0.9]
[1721269041031,2.92861,3414.6,3414.1,0.9]
[1721269042430,4.14783085,3414.6,3414.1,0.9]
[1721269042974,1.21922085,3414.6,3414.1,0.9]
[1721269043174,1.21922085,3414.7,3414.1,2.00482488]
[1721269043344,7.31,3414.8,3414.2,2.3312]
[1721269044770,8.52922085,3414.8,3414.2,2.3312]
[1721269046152,1.21922085,3414.8,3414.2,2.3312]
[1721269047067,1.21922085,3414.8,3414.4,2.3057]
[1721269047373,1.21922085,3414.8,3414.5,0.523449]
[1721269047740,1.21922085,3414.8,3414.5,3.452119]
[1721269048969,1.21922085,3414.8,3414.6,2.92859]
[1721269049434,3.0,3415.5,3414.6,2.92859]
[1721269049435,3.0,3415.5,3414.7,2.288]
[1721269049842,3.0,3415.5,3414.8,2.92841]
[1721269050063,3.0,3415.5,3414.7,2.288]
[1721269050064,3.520597,3415.5,3414.7,2.288]
[1721269050654,3.520597,3415.5,3414.1,0.9]
[1721269050655,2.92817,3415.1,3414.3,2.3426]
[1721269050857,2.9286,3414.6,3414.1,0.9]
[1721269051045,0.585705,3414.5,3414.1,0.9]
[1721269051446,2.92882,3414.4,3414.1,0.9]
[1721269052936,2.92885,3414.3,3414.1,0.9]
[1721269053136,2.92894,3414.2,3414.1,0.9]
[1721269053367,6.5732895,3414.2,3414.1,0.9]
[1721269053565,7.44035363,3414.2,3414.1,0.9]
[1721269053962,7.44035246,3414.2,3414.1,0.9]
[1721269054162,3.0,3414.2,3414.1,0.9]
[1721269054350,0.585705,3414.5,3414.1,0.9]
[1721269054548,3.514445,3414.5,3414.1,0.9]
[1721269054872,0.585705,3414.5,3414.1,0.9]
[1721269055078,2.92829,3415.0,3414.1,0.9]
[1721269055276,2.92843,3414.8,3414.1,0.9]
[1721269055572,2.92802,3415.3,3414.1,0.9]
[1721269055875,2.92826,3415.0,3414.1,0.9]
[1721269056041,0.37956997,3414.9,3414.1,0.9]
[1721269056375,11.123997,3415.5,3414.1,0.9]
[1721269056552,2.928,3415.3,3414.3,2.92885]
[1721269057238,2.92809,3415.2,3414.1,3.82897]
[1721269057643,2.92809,3415.2,3414.1,0.9]
[1721269058253,3.0,3415.1,3414.3,2.92885]
[1721269058677,3.0,3415.2,3414.3,2.92885]
[1721269058887,7.6039397,3415.2,3414.1,3.82897]
[1721269059119,4.6758597,3415.2,3414.1,0.9]
[1721269059319,2.92868,3414.5,3414.1,0.9]
[1721269059601,4.14994928,3414.3,3414.1,0.9]
[1721269059784,4.4553016,3414.2,3414.1,0.9]
[1721269060097,4.15051955,3414.2,3414.1,0.9]
[1721269060597,5.67667564,3414.2,3414.1,0.9]
[1721269060814,4.15051955,3414.2,3414.1,0.9]
[1721269060977,8.60563297,3414.2,3414.1,0.9]
[1721269061180,7.07945955,3414.2,3414.1,0.9]
[1721269061372,10.07945955,3414.2,3414.1,0.9]
[1721269062790,7.15051955,3414.2,3414.1,0.9]
[1721269064921,10.07945955,3414.2,3414.1,0.9]
[1721269065070,13.16645955,3414.2,3414.1,0.9]
[1721269065274,16.96321636,3414.2,3414.1,0.9]
[1721269066201,14.03427636,3414.2,3414.1,0.9]
[1721269066401,16.96321636,3414.2,3414.1,0.9]
[1721269066937,16.09539955,3414.2,3414.1,0.9]
[1721269067237,16.96314789,3414.2,3414.1,0.9]
[1721269067399,16.96314067,3414.2,3414.1,0.9]
[1721269067940,16.96312099,3414.2,3414.1,0.9]
[1721269068432,22.93796099,3414.2,3414.1,0.9]
[1721269068651,19.45902099,3414.2,3414.1,0.9]
[1721269069511,22.38796099,3414.2,3414.1,0.9]
[1721269069717,22.93796099,3414.2,3414.1,0.9]
[1721269069957,13.08246287,3414.2,3414.1,0.9]
[1721269070157,10.94691046,3414.2,3414.1,0.9]
[1721269071120,14.03391046,3414.2,3414.1,0.9]
[1721269071316,16.96285046,3414.2,3414.1,0.9]
[1721269071564,19.89179046,3414.2,3414.1,0.9]
[1721269071863,25.38209046,3414.2,3414.1,0.9]
[1721269072223,25.38188942,3414.2,3414.1,0.9]
[1721269073260,25.38199645,3414.2,3414.1,0.9]
[1721269073565,25.38198049,3414.2,3414.1,0.9]
[1721269074326,15.09648,3414.1,3414.0,10.1482488]
[1721269074539,22.43118656,3414.1,3414.0,10.1482488]
[1721269075135,22.43118656,3414.1,3414.0,2.8254488]
[1721269075865,22.43118656,3414.1,3414.0,1.3608888]
[1721269076378,22.4306248,3414.1,3414.0,1.3608888]
[1721269076870,26.59857339,3414.1,3414.0,8.8e-06]
[1721269077038,29.11808826,3414.1,3414.0,8.8e-06]
[1721269077430,29.11662118,3414.1,3414.0,8.8e-06]
[1721269078143,26.598376,3414.1,3414.0,8.8e-06]
[1721269078967,24.840376,3414.1,3414.0,8.8e-06]
[1721269079168,21.911356,3414.1,3414.0,8.8e-06]
[1721269079332,21.361356,3414.1,3414.0,8.8e-06]
[1721269079533,23.49193552,3414.1,3414.0,8.8e-06]
[1721269079771,18.43201729,3414.1,3414.0,8.8e-06]
[1721269079956,16.02201729,3414.1,3414.0,8.8e-06]
[1721269080300,25.67583729,3414.1,3414.0,8.8e-06]
[1721269080570,23.91583729,3414.1,3414.0,8.8e-06]
[1721269080867,26.59618151,3414.1,3414.0,8.8e-06]
[1721269081071,24.46583729,3414.1,3414.0,8.8e-06]
[1721269081231,26.59607407,3414.1,3414.0,8.8e-06]
[1721269081737,21.95083729,3414.1,3414.0,8.8e-06]
[1721269081937,23.53060208,3414.1,3414.0,8.8e-06]
[1721269082845,23.35940208,3414.1,3414.0,8.8e-06]
[1721269083050,23.74441891,3414.1,3414.0,8.8e-06]
[1721269083554,26.67343891,3414.1,3414.0,8.8e-06]
[1721269083881,34.42850153,3414.1,3414.0,8.8e-06]
[1721269084194,31.9634175,3414.1,3414.0,8.8e-06]
[1721269084779,28.16840421,3414.1,3414.0,8.8e-06]
[1721269084994,31.96314558,3414.1,3414.0,8.8e-06]
[1721269085281,2.93091,3412.0,3411.5,2.293]
[1721269085477,2.93095,3411.9,3411.5,2.293]
[1721269086056,2.93113,3411.7,3411.5,2.293]
[1721269086266,2.93124,3411.6,3410.8,2.2636]
[1721269086463,2.93124,3411.6,3410.9,0.27198727]
[1721269086651,2.93127,3411.5,3410.9,0.27198727]
[1721269086868,2.93161,3411.1,3410.8,2.2636]
[1721269087303,2.93161,3411.1,3410.6,0.1482488]
[1721269087304,2.93155,3411.2,3410.6,0.1482488]
[1721269087452,3.0,3411.1,3410.6,0.1482488]
[1721269087871,2.93174,3411.0,3410.6,0.1482488]
[1721269088188,2.93187,3410.8,3410.6,0.1482488]
[1721269088372,2.93194,3410.7,3410.6,0.1482488]